[Event "Titled Tuesday Blitz August 08 Late 2023"]
[White "Womacka, Mathias"]
[Black "Smiechu"]
[WhiteFideId "4611390"]
[WhiteElo "2477"]
[BlackElo "2342"]
[Result "0-1"]
[Round "6"]
[TimeControl "180+1"]
[Date "2023.08.08"]
[WhiteClock "0:00:00"]
[BlackClock "0:00:53"]
[Board "132"]

1. e4 {[%clk 0:03:00]}  c5 {[%clk 0:03:00]} 2. Nf3 {[%clk 0:03:00]}  g6 {[%clk 0:03:00]} 3. d4 {[%clk 0:02:59]}  cxd4 {[%clk 0:03:01]} 4. Nxd4 {[%clk 0:03:00]}  Nc6 {[%clk 0:03:01]} 5. c4 {[%clk 0:02:59]}  Nf6 {[%clk 0:03:01]} 6. Nc3 {[%clk 0:02:59]}  Nxd4 {[%clk 0:03:01]} 7. Qxd4 {[%clk 0:02:58]}  d6 {[%clk 0:03:02]} 8. Be2 {[%clk 0:02:54]}  Bg7 {[%clk 0:03:03]} 9. Bg5 {[%clk 0:02:53]}  O-O {[%clk 0:03:03]} 10. Qd2 {[%clk 0:02:52]}  Qa5 {[%clk 0:03:03]} 11. O-O {[%clk 0:02:49]}  Be6 {[%clk 0:03:04]} 12. Rfc1 {[%clk 0:02:32]}  Rfc8 {[%clk 0:03:01]} 13. b3 {[%clk 0:02:31]}  a6 {[%clk 0:02:59]} 14. Rab1 {[%clk 0:02:29]}  b5 {[%clk 0:02:51]} 15. b4 {[%clk 0:02:28]}  Qb6 {[%clk 0:02:43]} 16. Be3 {[%clk 0:02:24]}  Qb7 {[%clk 0:02:40]} 17. cxb5 {[%clk 0:02:24]}  axb5 {[%clk 0:02:40]} 18. f3 {[%clk 0:02:20]}  Bc4 {[%clk 0:02:39]} 19. Bxc4 {[%clk 0:02:02]}  Rxc4 {[%clk 0:02:35]} 20. Ne2 {[%clk 0:02:01]}  Rac8 {[%clk 0:02:34]} 21. Nd4 {[%clk 0:01:47]}  Nd7 {[%clk 0:02:31]} 22. Nb3 {[%clk 0:01:44]}  Bc3 {[%clk 0:02:26]} 23. Qd3 {[%clk 0:01:38]}  Bxb4 {[%clk 0:02:25]} 24. Rd1 {[%clk 0:01:06]}  Ne5 {[%clk 0:02:18]} 25. Qd5 {[%clk 0:01:01]}  Qxd5 {[%clk 0:02:17]} 26. Rxd5 {[%clk 0:01:02]}  Rb8 {[%clk 0:02:10]} 27. Nd4 {[%clk 0:01:02]}  Bc5 {[%clk 0:02:07]} 28. Kf2 {[%clk 0:00:59]}  e6 {[%clk 0:02:06]} 29. Rxc5 {[%clk 0:00:41]}  dxc5 {[%clk 0:02:05]} 30. Rxb5 {[%clk 0:00:40]}  Rxb5 {[%clk 0:02:00]} 31. Nxb5 {[%clk 0:00:41]}  Rc2+ {[%clk 0:01:59]} 32. Kg3 {[%clk 0:00:41]}  Nd3 {[%clk 0:01:58]} 33. a4 {[%clk 0:00:39]}  Ra2 {[%clk 0:01:56]} 34. Nc3 {[%clk 0:00:31]}  Ra3 {[%clk 0:01:56]} 35. Bd2 {[%clk 0:00:31]}  Nb2 {[%clk 0:01:55]} 36. e5 {[%clk 0:00:29]}  Nxa4 {[%clk 0:01:54]} 37. Ne4 {[%clk 0:00:28]}  c4 {[%clk 0:01:50]} 38. Nf6+ {[%clk 0:00:24]}  Kg7 {[%clk 0:01:50]} 39. Ne8+ {[%clk 0:00:24]}  Kf8 {[%clk 0:01:49]} 40. Bb4+ {[%clk 0:00:22]}  Kxe8 {[%clk 0:01:49]} 41. Bxa3 {[%clk 0:00:22]}  Kd7 {[%clk 0:01:48]} 42. Kf4 {[%clk 0:00:22]}  Kc6 {[%clk 0:01:48]} 43. Kg5 {[%clk 0:00:22]}  Kd5 {[%clk 0:01:35]} 44. Kf6 {[%clk 0:00:21]}  Nc3 {[%clk 0:01:33]} 45. h4 {[%clk 0:00:18]}  Nb5 {[%clk 0:01:30]} 46. Bc1 {[%clk 0:00:17]}  c3 {[%clk 0:01:25]} 47. g4 {[%clk 0:00:17]}  Nd4 {[%clk 0:01:25]} 48. h5 {[%clk 0:00:16]}  gxh5 {[%clk 0:01:22]} 49. gxh5 {[%clk 0:00:16]}  Nxf3 {[%clk 0:01:22]} 50. h6 {[%clk 0:00:15]}  Nxe5 {[%clk 0:01:21]} 51. Kg7 {[%clk 0:00:06]}  f5 {[%clk 0:01:06]} 52. Kxh7 {[%clk 0:00:06]}  Ng4 {[%clk 0:01:04]} 53. Kg6 {[%clk 0:00:06]}  Nxh6 {[%clk 0:01:00]} 54. Bxh6 {[%clk 0:00:04]}  Ke4 {[%clk 0:00:59]} 55. Kf6 {[%clk 0:00:01]}  e5 {[%clk 0:00:59]} 56. Bc1 {[%clk 0:00:01]}  f4 {[%clk 0:00:57]} 57. Kg5 {[%clk 0:00:02]}  Kd3 {[%clk 0:00:56]} 58. Kg4 {[%clk 0:00:00]}  Ke2 {[%clk 0:00:53]} 0-1


[Site "https://www.chess.com"]

[Event "Titled Tuesday Blitz August 08 Late 2023"]
[White "Lalanne, Pablo"]
[Black "Castro Silva, Moises Antonio"]
[WhiteFideId "112151"]
[BlackFideId "3909794"]
[WhiteElo "2318"]
[BlackElo "2431"]
[Result "1-0"]
[Round "6"]
[TimeControl "180+1"]
[Date "2023.08.08"]
[WhiteClock "0:01:33"]
[BlackClock "0:00:10"]
[Board "134"]

1. e4 {[%clk 0:03:00]}  c5 {[%clk 0:02:58]} 2. Nf3 {[%clk 0:03:00]}  e6 {[%clk 0:02:55]} 3. d4 {[%clk 0:03:01]}  cxd4 {[%clk 0:02:46]} 4. Nxd4 {[%clk 0:03:01]}  Nf6 {[%clk 0:02:43]} 5. Nc3 {[%clk 0:02:58]}  Nc6 {[%clk 0:02:05]} 6. Ndb5 {[%clk 0:02:55]}  Bc5 {[%clk 0:02:02]} 7. Bf4 {[%clk 0:02:53]}  O-O {[%clk 0:02:02]} 8. Bc7 {[%clk 0:02:52]}  Qe7 {[%clk 0:02:02]} 9. Bd6 {[%clk 0:02:52]}  Bxd6 {[%clk 0:02:03]} 10. Qxd6 {[%clk 0:02:53]}  Qd8 {[%clk 0:02:01]} 11. O-O-O {[%clk 0:02:48]}  a6 {[%clk 0:01:51]} 12. Nd4 {[%clk 0:02:40]}  Nxd4 {[%clk 0:01:31]} 13. Qxd4 {[%clk 0:02:32]}  b5 {[%clk 0:01:01]} 14. e5 {[%clk 0:02:30]}  Ne8 {[%clk 0:01:01]} 15. Qe4 {[%clk 0:02:27]}  Ra7 {[%clk 0:01:00]} 16. Bd3 {[%clk 0:02:26]}  g6 {[%clk 0:00:59]} 17. h4 {[%clk 0:02:26]}  h5 {[%clk 0:00:56]} 18. g4 {[%clk 0:02:25]}  Ng7 {[%clk 0:00:57]} 19. gxh5 {[%clk 0:02:04]}  Nxh5 {[%clk 0:00:58]} 20. Rhg1 {[%clk 0:02:00]}  Qe7 {[%clk 0:00:17]} 21. Rg5 {[%clk 0:01:51]}  Bb7 {[%clk 0:00:14]} 22. Qe3 {[%clk 0:01:44]}  Raa8 {[%clk 0:00:14]} 23. Rxh5 {[%clk 0:01:37]}  b4 {[%clk 0:00:10]} 24. Qh6 {[%clk 0:01:33]} 1-0


[Site "https://www.chess.com"]

[Event "Titled Tuesday Blitz August 08 Late 2023"]
[White "Gajwa Ankit"]
[Black "Weisz, Bryan"]
[WhiteFideId "5077834"]
[BlackFideId "30934133"]
[WhiteElo "2386"]
[BlackElo "2317"]
[Result "1-0"]
[Round "6"]
[TimeControl "180+1"]
[Date "2023.08.08"]
[WhiteClock "0:01:00"]
[BlackClock "0:01:26"]
[Board "136"]

1. e4 {[%clk 0:01:30]}  c5 {[%clk 0:02:59]} 2. Nf3 {[%clk 0:01:30]}  e5 {[%clk 0:02:57]} 3. Nxe5 {[%clk 0:01:25]}  Qe7 {[%clk 0:02:56]} 4. Nf3 {[%clk 0:01:25]}  Qxe4+ {[%clk 0:02:56]} 5. Be2 {[%clk 0:01:26]}  Be7 {[%clk 0:02:54]} 6. Nc3 {[%clk 0:01:27]}  Qc6 {[%clk 0:02:53]} 7. O-O {[%clk 0:01:28]}  Nf6 {[%clk 0:02:53]} 8. d4 {[%clk 0:01:29]}  cxd4 {[%clk 0:02:50]} 9. Nxd4 {[%clk 0:01:29]}  Qb6 {[%clk 0:02:46]} 10. a4 {[%clk 0:01:25]}  O-O {[%clk 0:02:44]} 11. a5 {[%clk 0:01:24]}  Qd8 {[%clk 0:02:44]} 12. Bf4 {[%clk 0:01:20]}  d6 {[%clk 0:02:40]} 13. Bf3 {[%clk 0:01:20]}  Nc6 {[%clk 0:02:33]} 14. Bxc6 {[%clk 0:01:16]}  bxc6 {[%clk 0:02:32]} 15. Nxc6 {[%clk 0:01:17]}  Qc7 {[%clk 0:02:30]} 16. Nxe7+ {[%clk 0:01:16]}  Qxe7 {[%clk 0:02:31]} 17. Bxd6 {[%clk 0:01:17]}  Qb7 {[%clk 0:02:23]} 18. Bxf8 {[%clk 0:01:18]}  Kxf8 {[%clk 0:02:20]} 19. Qd8+ {[%clk 0:01:16]}  Ne8 {[%clk 0:02:20]} 20. Rfe1 {[%clk 0:01:16]}  Be6 {[%clk 0:02:19]} 21. Qd4 {[%clk 0:01:14]}  Qxb2 {[%clk 0:02:16]} 22. Qc5+ {[%clk 0:01:13]}  Kg8 {[%clk 0:02:15]} 23. Nd5 {[%clk 0:01:13]}  Rd8 {[%clk 0:02:03]} 24. Ne7+ {[%clk 0:01:11]}  Kh8 {[%clk 0:02:03]} 25. Nc6 {[%clk 0:01:07]}  Rd6 {[%clk 0:01:48]} 26. Rad1 {[%clk 0:01:04]}  Qe5 {[%clk 0:01:26]} 27. Nxe5 {[%clk 0:01:00]} 1-0


[Site "https://www.chess.com"]

[Event "Titled Tuesday Blitz August 08 Late 2023"]
[White "Vaglio Munoz, Jaime"]
[Black "Orlov, Georgi"]
[WhiteFideId "6500145"]
[BlackFideId "2011271"]
[WhiteElo "2235"]
[BlackElo "2560"]
[Result "0-1"]
[Round "6"]
[TimeControl "180+1"]
[Date "2023.08.08"]
[WhiteClock "0:00:09"]
[BlackClock "0:00:21"]
[Board "140"]

1. Nf3 {[%clk 0:02:59]}  Nf6 {[%clk 0:02:59]} 2. c4 {[%clk 0:02:59]}  e6 {[%clk 0:02:58]} 3. b3 {[%clk 0:02:59]}  a6 {[%clk 0:02:57]} 4. Bb2 {[%clk 0:02:59]}  b5 {[%clk 0:02:56]} 5. g3 {[%clk 0:02:59]}  Bb7 {[%clk 0:02:56]} 6. Bg2 {[%clk 0:02:59]}  c5 {[%clk 0:02:56]} 7. O-O {[%clk 0:02:58]}  Be7 {[%clk 0:02:56]} 8. d3 {[%clk 0:02:57]}  O-O {[%clk 0:02:54]} 9. e4 {[%clk 0:02:57]}  d6 {[%clk 0:02:54]} 10. Nc3 {[%clk 0:02:53]}  bxc4 {[%clk 0:02:48]} 11. bxc4 {[%clk 0:02:52]}  Nc6 {[%clk 0:02:46]} 12. Rb1 {[%clk 0:02:52]}  Nd7 {[%clk 0:02:43]} 13. Ne2 {[%clk 0:02:45]}  Qc7 {[%clk 0:02:42]} 14. Nf4 {[%clk 0:02:44]}  Nde5 {[%clk 0:02:34]} 15. h4 {[%clk 0:02:37]}  h6 {[%clk 0:02:31]} 16. Nh5 {[%clk 0:02:36]}  g6 {[%clk 0:02:21]} 17. Nf4 {[%clk 0:02:34]}  Bf6 {[%clk 0:02:18]} 18. Qd2 {[%clk 0:02:14]}  Bg7 {[%clk 0:02:17]} 19. Ne2 {[%clk 0:02:06]}  Rab8 {[%clk 0:02:12]} 20. Nh2 {[%clk 0:02:05]}  Nb4 {[%clk 0:02:06]} 21. Nc1 {[%clk 0:01:58]}  h5 {[%clk 0:01:55]} 22. f4 {[%clk 0:01:58]}  Nd7 {[%clk 0:01:52]} 23. Bxg7 {[%clk 0:01:49]}  Kxg7 {[%clk 0:01:52]} 24. f5 {[%clk 0:01:48]}  exf5 {[%clk 0:01:36]} 25. exf5 {[%clk 0:01:47]}  Bxg2 {[%clk 0:01:35]} 26. Qxg2 {[%clk 0:01:47]}  Ne5 {[%clk 0:01:33]} 27. f6+ {[%clk 0:01:45]}  Kh7 {[%clk 0:01:33]} 28. a3 {[%clk 0:01:06]}  Nbc6 {[%clk 0:01:30]} 29. Rxb8 {[%clk 0:01:04]}  Rxb8 {[%clk 0:01:28]} 30. Qd2 {[%clk 0:01:00]}  Nd4 {[%clk 0:01:24]} 31. Ne2 {[%clk 0:00:58]}  Rb3 {[%clk 0:01:08]} 32. Nf4 {[%clk 0:00:52]}  Qb7 {[%clk 0:01:03]} 33. Qa5 {[%clk 0:00:45]}  Nef3+ {[%clk 0:00:55]} 34. Nxf3 {[%clk 0:00:35]}  Nxf3+ {[%clk 0:00:54]} 35. Kf2 {[%clk 0:00:33]}  Rb2+ {[%clk 0:00:50]} 36. Ke3 {[%clk 0:00:32]}  Nh2 {[%clk 0:00:32]} 37. Nd5 {[%clk 0:00:30]}  Nxf1+ {[%clk 0:00:29]} 38. Kf3 {[%clk 0:00:14]}  Nh2+ {[%clk 0:00:27]} 39. Ke3 {[%clk 0:00:13]}  Qd7 {[%clk 0:00:24]} 40. Nf4 {[%clk 0:00:11]}  Ng4+ {[%clk 0:00:22]} 41. Ke4 {[%clk 0:00:09]}  Qf5+ {[%clk 0:00:22]} 42. Kf3 {[%clk 0:00:09]}  Rf2# {[%clk 0:00:21]} 0-1


[Site "https://www.chess.com"]

[Event "Titled Tuesday Blitz August 08 Late 2023"]
[White "Berezin, Viktor"]
[Black "Fernandez Hernandez, Gerardo"]
[WhiteFideId "14107872"]
[BlackFideId "2207400"]
[WhiteElo "2472"]
[BlackElo "2229"]
[Result "1/2-1/2"]
[Round "6"]
[TimeControl "180+1"]
[Date "2023.08.08"]
[WhiteClock "0:00:17"]
[BlackClock "0:00:02"]
[Board "141"]

1. c4 {[%clk 0:02:53]}  e5 {[%clk 0:02:59]} 2. g3 {[%clk 0:02:53]}  Nc6 {[%clk 0:02:59]} 3. Bg2 {[%clk 0:02:49]}  f5 {[%clk 0:02:59]} 4. Nc3 {[%clk 0:02:50]}  Nf6 {[%clk 0:02:59]} 5. d3 {[%clk 0:02:49]}  Bb4 {[%clk 0:02:59]} 6. Bd2 {[%clk 0:02:48]}  O-O {[%clk 0:02:57]} 7. a3 {[%clk 0:02:48]}  Bxc3 {[%clk 0:02:57]} 8. Bxc3 {[%clk 0:02:49]}  d6 {[%clk 0:02:57]} 9. e3 {[%clk 0:02:49]}  Be6 {[%clk 0:02:30]} 10. Ne2 {[%clk 0:02:45]}  d5 {[%clk 0:02:29]} 11. cxd5 {[%clk 0:02:38]}  Nxd5 {[%clk 0:02:28]} 12. O-O {[%clk 0:02:39]}  Qd7 {[%clk 0:02:21]} 13. b4 {[%clk 0:02:36]}  a6 {[%clk 0:02:14]} 14. Bb2 {[%clk 0:02:37]}  Rad8 {[%clk 0:02:13]} 15. Qc2 {[%clk 0:02:30]}  f4 {[%clk 0:01:54]} 16. exf4 {[%clk 0:01:59]}  exf4 {[%clk 0:01:52]} 17. Be4 {[%clk 0:01:53]}  f3 {[%clk 0:01:06]} 18. Nd4 {[%clk 0:01:50]}  Nxd4 {[%clk 0:00:55]} 19. Bxd4 {[%clk 0:01:50]}  Nxb4 {[%clk 0:00:49]} 20. axb4 {[%clk 0:01:49]}  Qxd4 {[%clk 0:00:49]} 21. Qxc7 {[%clk 0:01:49]}  Rc8 {[%clk 0:00:35]} 22. Qe7 {[%clk 0:01:32]}  Bh3 {[%clk 0:00:32]} 23. Rfc1 {[%clk 0:01:31]}  Rc2 {[%clk 0:00:27]} 24. Rf1 {[%clk 0:01:24]}  Rxf2 {[%clk 0:00:20]} 25. Bd5+ {[%clk 0:01:15]}  Qxd5 {[%clk 0:00:20]} 26. Rxf2 {[%clk 0:01:15]}  Qxd3 {[%clk 0:00:17]} 27. Re1 {[%clk 0:01:11]}  Bg2 {[%clk 0:00:15]} 28. Qe6+ {[%clk 0:01:06]}  Kh8 {[%clk 0:00:14]} 29. Qe8 {[%clk 0:00:55]}  Qd6 {[%clk 0:00:11]} 30. Qe4 {[%clk 0:00:37]}  h6 {[%clk 0:00:10]} 31. Rc1 {[%clk 0:00:27]}  b6 {[%clk 0:00:07]} 32. Qc4 {[%clk 0:00:21]}  a5 {[%clk 0:00:06]} 33. b5 {[%clk 0:00:20]}  Rd8 {[%clk 0:00:03]} 34. Qc6 {[%clk 0:00:20]}  Qd1+ {[%clk 0:00:03]} 35. Rf1 {[%clk 0:00:19]}  Qd4+ {[%clk 0:00:01]} 36. Rf2 {[%clk 0:00:18]}  Qd1+ {[%clk 0:00:01]} 37. Rf1 {[%clk 0:00:18]}  Qd4+ {[%clk 0:00:02]} 38. Rf2 {[%clk 0:00:17]}  Qd1+ {[%clk 0:00:02]} 1/2-1/2


[Site "https://www.chess.com"]

[Event "Titled Tuesday Blitz August 08 Late 2023"]
[White "Bazzano, Sebastian"]
[Black "Davidson, Kevin"]
[WhiteFideId "104566"]
[BlackFideId "2056810"]
[WhiteElo "2222"]
[BlackElo "2363"]
[Result "0-1"]
[Round "6"]
[TimeControl "180+1"]
[Date "2023.08.08"]
[WhiteClock "0:00:00"]
[BlackClock "0:00:03"]
[Board "143"]

1. d4 {[%clk 0:02:59]}  Nf6 {[%clk 0:02:59]} 2. Bf4 {[%clk 0:02:59]}  g6 {[%clk 0:02:59]} 3. Nc3 {[%clk 0:02:56]}  Bg7 {[%clk 0:02:59]} 4. e4 {[%clk 0:02:55]}  d6 {[%clk 0:03:00]} 5. Qd2 {[%clk 0:02:55]}  c6 {[%clk 0:03:00]} 6. O-O-O {[%clk 0:02:55]}  b5 {[%clk 0:03:00]} 7. Bd3 {[%clk 0:02:53]}  b4 {[%clk 0:02:52]} 8. Nce2 {[%clk 0:02:52]}  Qa5 {[%clk 0:02:39]} 9. a3 {[%clk 0:02:47]}  Na6 {[%clk 0:02:15]} 10. Bxa6 {[%clk 0:01:41]}  Qxa6 {[%clk 0:02:06]} 11. Qxb4 {[%clk 0:01:31]}  Nxe4 {[%clk 0:02:03]} 12. Be3 {[%clk 0:01:19]}  O-O {[%clk 0:01:58]} 13. Ng3 {[%clk 0:01:00]}  Nf6 {[%clk 0:01:51]} 14. Nf3 {[%clk 0:00:56]}  Bg4 {[%clk 0:01:34]} 15. h3 {[%clk 0:00:55]}  Rab8 {[%clk 0:01:05]} 16. Qd2 {[%clk 0:00:50]}  Bxf3 {[%clk 0:00:59]} 17. gxf3 {[%clk 0:00:50]}  Nd5 {[%clk 0:00:46]} 18. h4 {[%clk 0:00:34]}  Qc4 {[%clk 0:00:42]} 19. c3 {[%clk 0:00:22]}  Rb3 {[%clk 0:00:35]} 20. Qd3 {[%clk 0:00:20]}  Qxd3 {[%clk 0:00:18]} 21. Rxd3 {[%clk 0:00:20]}  Rfb8 {[%clk 0:00:17]} 22. Rd2 {[%clk 0:00:19]}  f5 {[%clk 0:00:12]} 23. f4 {[%clk 0:00:16]}  h5 {[%clk 0:00:09]} 24. Re1 {[%clk 0:00:14]}  Kf7 {[%clk 0:00:09]} 25. Ne2 {[%clk 0:00:08]}  a5 {[%clk 0:00:08]} 26. Ng1 {[%clk 0:00:08]}  Nxc3 {[%clk 0:00:07]} 27. Nf3 {[%clk 0:00:03]}  Ne4 {[%clk 0:00:06]} 28. Ng5+ {[%clk 0:00:03]}  Nxg5 {[%clk 0:00:06]} 29. fxg5 {[%clk 0:00:03]}  c5 {[%clk 0:00:06]} 30. dxc5 {[%clk 0:00:02]}  Bxb2+ {[%clk 0:00:06]} 31. Kc2 {[%clk 0:00:02]}  Bc3 {[%clk 0:00:06]} 32. Rd3 {[%clk 0:00:01]}  Bxe1 {[%clk 0:00:03]} 33. Rxb3 {[%clk 0:00:01]}  Rxb3 {[%clk 0:00:02]} 34. Kxb3 {[%clk 0:00:02]}  dxc5 {[%clk 0:00:03]} 35. Bxc5 {[%clk 0:00:02]}  e5 {[%clk 0:00:02]} 36. Kc4 {[%clk 0:00:02]}  Ke6 {[%clk 0:00:02]} 37. Kb5 {[%clk 0:00:02]}  Kd5 {[%clk 0:00:03]} 38. Bb6 {[%clk 0:00:02]}  e4 {[%clk 0:00:02]} 39. Bxa5 {[%clk 0:00:02]}  Bxf2 {[%clk 0:00:02]} 40. Bb4 {[%clk 0:00:01]}  e3 {[%clk 0:00:02]} 41. a4 {[%clk 0:00:01]}  e2 {[%clk 0:00:03]} 42. a5 {[%clk 0:00:00]}  e1=Q {[%clk 0:00:03]} 0-1


[Site "https://www.chess.com"]

[Event "Titled Tuesday Blitz August 08 Late 2023"]
[White "Petersson, Kjell"]
[Black "Garmendiarov"]
[WhiteFideId "1705148"]
[WhiteElo "2197"]
[BlackElo "2317"]
[Result "0-1"]
[Round "6"]
[TimeControl "180+1"]
[Date "2023.08.08"]
[WhiteClock "0:00:30"]
[BlackClock "0:00:12"]
[Board "146"]

1. d4 {[%clk 0:03:00]}  Nf6 {[%clk 0:02:59]} 2. Bf4 {[%clk 0:03:01]}  g6 {[%clk 0:02:59]} 3. Nc3 {[%clk 0:03:00]}  d5 {[%clk 0:02:59]} 4. e3 {[%clk 0:03:00]}  Bg7 {[%clk 0:02:59]} 5. Nb5 {[%clk 0:02:59]}  Na6 {[%clk 0:02:57]} 6. Nc3 {[%clk 0:02:59]}  c5 {[%clk 0:02:50]} 7. Bxa6 {[%clk 0:02:56]}  bxa6 {[%clk 0:02:51]} 8. dxc5 {[%clk 0:02:49]}  Qa5 {[%clk 0:02:50]} 9. Be5 {[%clk 0:02:34]}  O-O {[%clk 0:02:40]} 10. Qd4 {[%clk 0:02:27]}  Bf5 {[%clk 0:02:19]} 11. O-O-O {[%clk 0:02:18]}  Rfd8 {[%clk 0:01:47]} 12. f3 {[%clk 0:01:50]}  Rac8 {[%clk 0:01:18]} 13. g4 {[%clk 0:01:49]}  Be6 {[%clk 0:01:18]} 14. h4 {[%clk 0:01:32]}  Rxc5 {[%clk 0:00:55]} 15. Kb1 {[%clk 0:01:23]}  Rc4 {[%clk 0:00:52]} 16. Qd3 {[%clk 0:01:20]}  Nd7 {[%clk 0:00:26]} 17. Bxg7 {[%clk 0:01:18]}  Nc5 {[%clk 0:00:21]} 18. Qd2 {[%clk 0:01:14]}  Kxg7 {[%clk 0:00:20]} 19. h5 {[%clk 0:01:14]}  Rb8 {[%clk 0:00:18]} 20. Ka1 {[%clk 0:01:01]}  Rcb4 {[%clk 0:00:15]} 21. Rb1 {[%clk 0:00:57]}  Na4 {[%clk 0:00:13]} 22. Nxa4 {[%clk 0:00:52]}  Qxa4 {[%clk 0:00:14]} 23. Qc3+ {[%clk 0:00:51]}  d4 {[%clk 0:00:14]} 24. h6+ {[%clk 0:00:46]}  Kg8 {[%clk 0:00:14]} 25. b3 {[%clk 0:00:34]}  dxc3 {[%clk 0:00:12]} 26. Ne2 {[%clk 0:00:31]}  Qxa2+ {[%clk 0:00:11]} 27. Kxa2 {[%clk 0:00:30]}  Ra4# {[%clk 0:00:12]} 0-1


[Site "https://www.chess.com"]

[Event "Titled Tuesday Blitz August 08 Late 2023"]
[White "Powell, Paul"]
[Black "Spichkin, Alexander"]
[WhiteFideId "2005840"]
[BlackFideId "4144074"]
[WhiteElo "2181"]
[BlackElo "2291"]
[Result "1-0"]
[Round "6"]
[TimeControl "180+1"]
[Date "2023.08.08"]
[WhiteClock "0:00:01"]
[BlackClock "0:00:15"]
[Board "150"]

1. d4 {[%clk 0:03:00]}  e6 {[%clk 0:02:53]} 2. Nf3 {[%clk 0:03:00]}  f5 {[%clk 0:02:51]} 3. Bf4 {[%clk 0:03:00]}  Nf6 {[%clk 0:02:52]} 4. e3 {[%clk 0:03:00]}  Be7 {[%clk 0:02:51]} 5. h3 {[%clk 0:02:59]}  O-O {[%clk 0:02:49]} 6. c4 {[%clk 0:02:59]}  b6 {[%clk 0:02:48]} 7. Nc3 {[%clk 0:02:59]}  Bb7 {[%clk 0:02:43]} 8. Be2 {[%clk 0:02:59]}  d6 {[%clk 0:02:36]} 9. O-O {[%clk 0:02:59]}  Qe8 {[%clk 0:02:35]} 10. Rc1 {[%clk 0:02:59]}  Nbd7 {[%clk 0:02:30]} 11. b4 {[%clk 0:02:57]}  Bd8 {[%clk 0:02:28]} 12. Qb3 {[%clk 0:02:42]}  Kh8 {[%clk 0:02:27]} 13. a4 {[%clk 0:02:38]}  e5 {[%clk 0:02:23]} 14. Bh2 {[%clk 0:02:30]}  e4 {[%clk 0:02:18]} 15. Nd2 {[%clk 0:02:25]}  Qg6 {[%clk 0:02:18]} 16. Qd1 {[%clk 0:02:12]}  c5 {[%clk 0:02:07]} 17. Bxd6 {[%clk 0:01:58]}  cxb4 {[%clk 0:02:03]} 18. Nd5 {[%clk 0:01:32]}  Nxd5 {[%clk 0:01:57]} 19. cxd5 {[%clk 0:01:32]}  Re8 {[%clk 0:01:56]} 20. Bxb4 {[%clk 0:01:23]}  Bxd5 {[%clk 0:01:56]} 21. Bh5 {[%clk 0:01:21]}  Qe6 {[%clk 0:01:44]} 22. Bxe8 {[%clk 0:01:20]}  Qxe8 {[%clk 0:01:45]} 23. Nc4 {[%clk 0:01:18]}  a5 {[%clk 0:01:41]} 24. Ba3 {[%clk 0:01:16]}  Nf6 {[%clk 0:01:34]} 25. Ne5 {[%clk 0:01:07]}  Be7 {[%clk 0:01:21]} 26. Bxe7 {[%clk 0:00:56]}  Qxe7 {[%clk 0:01:22]} 27. Qc2 {[%clk 0:00:56]}  Qb4 {[%clk 0:01:03]} 28. Rb1 {[%clk 0:00:48]}  Qa3 {[%clk 0:01:01]} 29. Rxb6 {[%clk 0:00:43]}  h6 {[%clk 0:00:59]} 30. Rfb1 {[%clk 0:00:29]}  f4 {[%clk 0:00:41]} 31. Rb8+ {[%clk 0:00:28]}  Rxb8 {[%clk 0:00:39]} 32. Rxb8+ {[%clk 0:00:28]}  Kh7 {[%clk 0:00:39]} 33. Qc8 {[%clk 0:00:20]}  Ng8 {[%clk 0:00:20]} 34. Qf5+ {[%clk 0:00:13]}  g6 {[%clk 0:00:19]} 35. Qd7+ {[%clk 0:00:10]}  Ne7 {[%clk 0:00:20]} 36. Qd8 {[%clk 0:00:03]}  Qc1+ {[%clk 0:00:17]} 37. Kh2 {[%clk 0:00:02]}  Kg7 {[%clk 0:00:18]} 38. Qf8+ {[%clk 0:00:01]}  Kh7 {[%clk 0:00:17]} 39. Qxe7+ {[%clk 0:00:01]}  Bf7 {[%clk 0:00:15]} 40. Qxf7# {[%clk 0:00:01]} 1-0


[Site "https://www.chess.com"]

[Event "Titled Tuesday Blitz August 08 Late 2023"]
[White "Rodriguez Santiago, Jaime"]
[Black "Novikova, Margarita"]
[WhiteFideId "3100898"]
[BlackFideId "14109689"]
[WhiteElo "2286"]
[BlackElo "2136"]
[Result "0-1"]
[Round "6"]
[TimeControl "180+1"]
[Date "2023.08.08"]
[WhiteClock "0:00:51"]
[BlackClock "0:00:37"]
[Board "152"]

1. c4 {[%clk 0:02:56]}  Nf6 {[%clk 0:02:58]} 2. Nc3 {[%clk 0:02:54]}  e6 {[%clk 0:02:58]} 3. e4 {[%clk 0:02:50]}  d5 {[%clk 0:02:55]} 4. e5 {[%clk 0:02:50]}  d4 {[%clk 0:02:54]} 5. exf6 {[%clk 0:02:51]}  dxc3 {[%clk 0:02:53]} 6. bxc3 {[%clk 0:02:50]}  Qxf6 {[%clk 0:02:51]} 7. d4 {[%clk 0:02:50]}  e5 {[%clk 0:02:50]} 8. Nf3 {[%clk 0:02:49]}  exd4 {[%clk 0:02:41]} 9. cxd4 {[%clk 0:02:47]}  Bb4+ {[%clk 0:02:40]} 10. Bd2 {[%clk 0:02:47]}  Bxd2+ {[%clk 0:02:40]} 11. Qxd2 {[%clk 0:02:46]}  O-O {[%clk 0:02:39]} 12. Be2 {[%clk 0:02:46]}  Re8 {[%clk 0:02:36]} 13. O-O {[%clk 0:02:44]}  Nc6 {[%clk 0:02:32]} 14. h3 {[%clk 0:02:40]}  Bf5 {[%clk 0:02:29]} 15. Rfd1 {[%clk 0:02:35]}  Rad8 {[%clk 0:02:27]} 16. d5 {[%clk 0:02:27]}  Ne5 {[%clk 0:02:18]} 17. Nxe5 {[%clk 0:02:23]}  Qxe5 {[%clk 0:02:18]} 18. Bf1 {[%clk 0:02:20]}  Qd6 {[%clk 0:02:06]} 19. Qd4 {[%clk 0:02:06]}  b6 {[%clk 0:02:05]} 20. a4 {[%clk 0:02:05]}  a5 {[%clk 0:02:04]} 21. Rac1 {[%clk 0:02:02]}  Re4 {[%clk 0:02:02]} 22. Qb2 {[%clk 0:01:57]}  Qg6 {[%clk 0:01:54]} 23. Qb3 {[%clk 0:01:49]}  Rh4 {[%clk 0:01:44]} 24. Kh2 {[%clk 0:01:48]}  Qd6+ {[%clk 0:01:39]} 25. Kg1 {[%clk 0:01:47]}  Re8 {[%clk 0:01:26]} 26. Rc3 {[%clk 0:01:45]}  Rhe4 {[%clk 0:01:20]} 27. Rf3 {[%clk 0:01:42]}  Bg6 {[%clk 0:01:18]} 28. Qc3 {[%clk 0:01:35]}  Bh5 {[%clk 0:01:05]} 29. g4 {[%clk 0:01:33]}  Bg6 {[%clk 0:00:58]} 30. Rd4 {[%clk 0:01:15]}  Re1 {[%clk 0:00:44]} 31. Re3 {[%clk 0:00:58]}  R8xe3 {[%clk 0:00:40]} 32. fxe3 {[%clk 0:00:51]}  Qg3+ {[%clk 0:00:37]} 0-1


[Site "https://www.chess.com"]